Workbook

Sheet Computations
A1: Runway Saturation Capacity Estimation
A2: Using the Analyical Model of Harris
A4: Programmer: A. Trani (Jan 2002)
A5: Amendments: | B5: 1 | C5: 2003-04-07 | E5: Corrected formula to estimate E(delta j)
B6: 2 | C6: 2010-10-01 | E6: Added units to each block of calculations
A8: Technical Parameters (inputs) | E8: Parameter | F8: Values | G8: Units | H8: Notes
A9: Dep-Arrival Separation (nm) | E9: d | F9: 2 | G9: nm | H9: arrival-departure separation
A10: Common Approach Length (nm) | E10: g | F10: 7 | G10: nm | H10: common approach length
A11: Standard deviation of Position Delivery Error (s) | E11: s | F11: 16 | G11: seconds | H11: standard deviation of in-trail delivery error
A12: Probability of Violation | E12: Pv | F12: 5 | G12: dim | H12: probability of violation
A13: Cumulative Normal at Pv | E13: qv | F13: =qv_computation(F12) -> 1.65 | G13: dim | H13: cumulative normal at Pv
E14: e | F14: 10 | G14: seconds | H14: clear for takeoff time lag
B15: Small | C15: Large | D15: Heavy
A16: ROT (s) | B16: 48 | C16: 55 | D16: 62 | E16: =B16*B17/100+C16*C17/100+D16*D17/100 -> 56.05 | F16: E(ROT)
A17: Percent Mix | B17: 10 | C17: 65 | D17: 25 | E17: =B17+C17+D17 -> 100 | F17: Total %
A18: Vapproach (knots) | B18: 125 | C18: 145 | D18: 155
A20: Minimum Separation Matrix (nm) | D20: Arrivals-Arrivals | F20: Airport Type
C21: Trailing | F21: Small
B22: Small | C22: Large | D22: Heavy
A23: Small | B23: =IF($F$21="large",2.5,3)*$F$27 -> 3 | C23: =IF($F$21="large",2.5,3)*$F$27 -> 3 | D23: =IF($F$21="large",2.5,3)*$F$27 -> 3 | F23: Weather Conditions
A24: Large | B24: =IF($F$21="large",4,5)*$F$27 -> 5 | C24: =IF($F$21="large",2.5,3)*$F$27 -> 3 | D24: =IF($F$21="large",2.5,3)*$F$27 -> 3 | F24: IFR
A25: Heavy | B25: 6 | C25: =IF($F$21="large",5,5)*$F$27 -> 5 | D25: 3 | J25: Weather Condition | K25: Separation Multiplier
F26: Separation Multiplier for Weather Conditions | J26: IFR | K26: 1
F27: =INDEX(weather_multiplier,MATCH(F24,weather,0)) -> 1 | J27: VFR | K27: 0.8
A28: Error Free Separation Matrix (seconds)
C29: Trailing
B30: Small | C30: Large | D30: Heavy | F30: Expected Value
A31: Small | B31: =B23/B$18*3600 -> 86.4 | C31: =C23/C$18*3600 -> 74.48275862 | D31: =D23/D$18*3600 -> 69.67741935 | F31: E(Tij)
A32: Large | B32: =(B24/B$18+$F$10*(1/B$18-1/C$18))*3600 -> 171.8068966 | C32: =C24/C$18*3600 -> 74.48275862 | D32: =D24/D$18*3600 -> 69.67741935 | F32: =B31*B38+C31*C38+D31*D38+B32*B39+C32*C39+D32*D39+B33*B40+C33*C40+D33*D40 -> 93.05107008
A33: Heavy | B33: =(B25/B$18+$F$10*(1/B$18-1/D$18))*3600 -> 211.8193548 | C33: =(C25/C$18+$F$10*(1/C$18-1/D$18))*3600 -> 135.3503893 | D33: =D25/D$18*3600 -> 69.67741935
A35: Pij Matrix (dim)
C36: Trailing
B37: Small | C37: Large | D37: Heavy | F37: Sum of Pij
A38: Small | B38: =B17/100*B17/100 -> 0.01 | C38: =B17/100*C17/100 -> 0.065 | D38: =B17/100*D17/100 -> 0.025 | F38: =B38+C38+D38 -> 0.1
A39: Large | B39: =B17/100*C17/100 -> 0.065 | C39: =C17/100*C17/100 -> 0.4225 | D39: =C17/100*D17/100 -> 0.1625 | F39: =B39+C39+D39 -> 0.65
A40: Heavy | B40: =B17/100*D17/100 -> 0.025 | C40: =C17/100*D17/100 -> 0.1625 | D40: =D17/100*D17/100 -> 0.0625 | F40: =B40+C40+D40 -> 0.25
F41: =F40+F39+F38 -> 1
A42: Buffer Matrix (seconds)
C43: Trailing
B44: Small | C44: Large | D44: Heavy | F44: Expected Value
A45: Small | B45: =$F$13*$F$11 -> 26.4 | C45: =$F$13*$F$11 -> 26.4 | D45: =$F$13*$F$11 -> 26.4 | F45: B(Tij)
A46: Large | B46: =MAX(0,$F$13*$F$11-B24*(1/B$18-1/C$18)*3600) -> 6.537931034 | C46: =$F$13*$F$11 -> 26.4 | D46: =$F$13*$F$11 -> 26.4 | F46: =B38*B45+C45*C38+D38*D45+B39*B46+C39*C46+D39*D46+B40*B47+C40*C47+D40*D47 -> 23.14751947
A47: Heavy | B47: =MAX(0,$F$13*$F$11-B25*(1/B$18-1/D$18)*3600) -> 0 | C47: =MAX(0,$F$13*$F$11-C25*(1/C$18-1/D$18)*3600) -> 18.39110122 | D47: =$F$13*$F$11 -> 26.4
A50: Augmented Matrix (Tij + Bij) (seconds)
C51: Trailing
B52: Small | C52: Large | D52: Heavy | F52: Expected Value
A53: Small | B53: =B45+B31 -> 112.8 | C53: =C45+C31 -> 100.8827586 | D53: =D45+D31 -> 96.07741935 | F53: E(Tij) + B(Tij)
A54: Large | B54: =B46+B32 -> 178.3448276 | C54: 100.8827586 | D54: 96.07741935 | F54: =B38*B53+C38*C53+D38*D53+B39*B54+C39*C54+D39*D54+B40*B55+C40*C55+D40*D55 -> 116.1985895
A55: Heavy | B55: 211.8193548 | C55: 153.7414905 | D55: 96.07741935
A57: Arrivals Only Capacity (per hour) | D57: =3600/F54 -> 30.98144318
A60: Departure-Departure Separation Matrix (seconds)
C61: Trailing
B62: Small | C62: Large | D62: Heavy | F62: Expected Value
A63: Small | B63: 60 | C63: =B63 -> 60 | D63: =C63 -> 60 | F63: E(Td)
A64: Large | B64: 60 | C64: 60 | D64: 90 | F64: =(B63*B38+C38*C63+D63*D38+B39*B64+C64*C39+D39*D64+B65*B40+C40*C65+D65*D40) -> 79.875
A65: Heavy | B65: 120 | C65: 120 | D65: 120
A67: Departures Only Capacity (per hour) | D67: =3600/F64 -> 45.07042254
A69: Estimation of Critical Departure Gaps (seconds)
E70: E(ROT) | F70: =E16 -> 56.05 | G70: seconds
A71: Departures | C71: Gap (EDTij) | E71: E(d/Vj) | F71: =($F$9/B$18*B17/100+$F$9/C$18*C17/100+F$9/D$18*D17/100)*3600 -> 49.64876529 | G71: seconds
A72: 1 | C72: =$F$70+$F$71+$F$72+(A72-1)*$F$64 -> 115.6987653 | D72: seconds | E72: sg*qv or e | F72: =F14 -> 10 | G72: seconds
A73: 2 | C73: 195.5737653 | D73: seconds
A74: 3 | C74: 275.4487653 | D74: seconds
A75: 4 | C75: 355.3237653 | D75: seconds
A76: 5 | C76: 435.1987653 | D76: seconds
A77: 6 | C77: 515.0737653 | D77: seconds
A78: 7 | C78: 594.9487653 | D78: seconds
A79: 8 | C79: 674.8237653 | D79: seconds
A80: 9 | C80: 754.6987653 | D80: seconds
A81: 10 | C81: 834.5737653 | D81: seconds
A82: 11 | C82: 914.4487653 | D82: seconds
A84: Departures per Gap
C85: Trailing
B86: Small | C86: Large | D86: Heavy
A87: Small | B87: =no_of_departures(B53,$C$72,$C$73,$C$74,$C$75) -> 0 | C87: 0 | D87: 0
A88: Large | B88: 1 | C88: 0 | D88: 0
A89: Heavy | B89: 2 | C89: 1 | D89: 0
A91: Departures per hour with 100% Arrival Priority
C93: Trailing
B94: Small | C94: Large | D94: Heavy | F94: Expected Value
A95: Small | B95: =B87*($D$57-1)*B38 -> 0 | C95: 0 | D95: 0 | F95: =B95+C95+D95 -> 0
A96: Large | B96: 1.948793807 | C96: 0 | D96: 0 | F96: =B96+C96+D96 -> 1.948793807
A97: Heavy | B97: 1.499072159 | C97: 4.871984517 | D97: 0 | F97: =B97+C97+D97 -> 6.371056677
F98: =SUM(F95:F97) -> 8.319850484 | G98: Total Departures
G99: with 100% arrival priority
A100: Summary for Arrival - Departure Diagram
A102: Arrivals | B102: Departures | D102: Operation Pattern | G102: Arrivals | H102: Departures
A103: =D57 -> 30.98144318 | B103: 0 | D103: Arrivals Only | G103: =A103*2 -> 61.96288637 | H103: =2*B103 -> 0
A104: =A103 -> 30.98144318 | B104: =F98 -> 8.319850484 | D104: 100% Arrivals + Departures | G104: =G103 -> 61.96288637 | H104: =2*B104 -> 16.63970097
A105: ='Other Calculations'!D57 -> 24.03845443 | B105: ='Other Calculations'!F98 -> 25.11191532 | G105: =2*A105 -> 48.07690885 | H105: =2*B105 -> 50.22383065
A106: 0 | B106: =D67 -> 45.07042254 | D106: Departures Only | G106: 0 | H106: =2*B106 -> 90.14084507

Sheet Program Description
A1: Simple Runway Saturation Capacity Program
A3: Implements the analyical procedure developed
A4: by W. Harris (at the MITRE Corporation)
A5: to estimate a single runway saturation capacity.
A7: This analytical procedure does not compute
A8: runway delay so another suitable method should be employed to
A9: estimate delay. A complementary approach to estimate
A10: delay would be to use queueing theory (see course notes).
A12: NOTE: This program only computes the saturation
A13: capacity for one runway. If multiple runways exist
A14: you can use a variation of the method to estimate
A15: the saturation capacity of the entire airport as follows:
A17: a) If runways are independent (check mimimum separation
A18: criteria) then the saturation capacity is just a multiple of the single runway capacity
A20: b) If runway operations are dependent (check separation criteria)
A21: then select a primary runway and estimate the capacity of this facility.
A22: Then select each remaining runway and iteratively create a feasible
A23: operations diagram so that time gaps left empty in the first runway
A24: are used by aircraft operating from other runways. This process
A25: requires some thinking and perhaps some local knowledge of how
A26: the airport is operated. Consult the ATC facility to get this information.

Sheet Other Calculations
A1: This section of the program calculates new points in the
A2: Pareto diagram. These calculations vary the arrival-arrival
A3: separations (see cell H21) and then recalculates the new capacity
A4: of the runway. This mimics a controller that alows
A5: arrivals to be spread more and thus allow more departures
A6: on the same runway.
A8: Technical Parameters (inputs) | E8: Parameter | F8: Values
A9: Dep-Arrival Separation (nm) | E9: d | F9: =Computations!F9 -> 2
A10: Common Approach Length (nm) | E10: g | F10: =Computations!F10 -> 7
A11: Standard deviation of Position Delivery Error (s) | E11: s | F11: =Computations!F11 -> 16
A12: Probability of Violation | E12: Pv | F12: =Computations!F12 -> 5 | H12: Number of Runways | J12: Runway Occupancy
A13: Cumulative Normal at Pv | E13: qv | F13: =Computations!F13 -> 1.65 | H13: 2
B15: TERP A | C15: TERP B | D15: TERP C
A16: ROT (s) | B16: =Computations!B16 -> 48 | C16: =Computations!C16 -> 55 | D16: =Computations!D16 -> 62 | E16: =B16*B17/100+C16*C17/100+D16*D17/100 -> 56.05 | F16: E(ROT)
A17: Percent Mix | B17: =Computations!B17 -> 10 | C17: =Computations!C17 -> 65 | D17: =Computations!D17 -> 25 | E17: =B17+C17+D17 -> 100 | F17: Total %
A18: Vapproach (knots) | B18: =Computations!B18 -> 125 | C18: =Computations!C18 -> 145 | D18: =Computations!D18 -> 155
A20: Separation Matrix (nm) | D20: Arrivals-Arrivals | F20: Airport Type | H20: Multiplier for new Arrival Separation Matrix
C21: Trailing | F21: =Computations!F21 -> Small | H21: 1.39
B22: TERP A | C22: TERP B | D22: TERP C
A23: Small | B23: =Computations!B23*$H$21 -> 4.17 | C23: =Computations!C23*$H$21 -> 4.17 | D23: =Computations!D23*$H$21 -> 4.17 | F23: Weather Conditions
A24: Large | B24: =Computations!B24*$H$21 -> 6.95 | C24: =Computations!C24*$H$21 -> 4.17 | D24: =Computations!D24*$H$21 -> 4.17 | F24: =Computations!F24 -> IFR
A25: Heavy | B25: =Computations!B25*$H$21 -> 8.34 | C25: =Computations!C25*$H$21 -> 6.95 | D25: =Computations!D25*$H$21 -> 4.17 | J25: Weather Condition | K25: Separation Multiplier
F26: Separation Multiplier for Weather Conditions | J26: IFR | K26: 1
F27: =Computations!F27 -> 1 | J27: VFR | K27: 0.8
A28: =Computations!A28 -> Error Free Separation Matrix (seconds)
C29: Trailing
B30: Small | C30: Large | D30: Heavy | F30: Expected Value
A31: Small | B31: =B23/B$18*3600 -> 120.096 | C31: =C23/C$18*3600 -> 103.5310345 | D31: =D23/D$18*3600 -> 96.8516129 | F31: E(Tij)
A32: Large | B32: =(B24/B$18+$F$10*(1/B$18-1/C$18))*3600 -> 227.9668966 | C32: =C24/C$18*3600 -> 103.5310345 | D32: =D24/D$18*3600 -> 96.8516129 | F32: =B31*B38+C31*C38+D31*D38+B32*B39+C32*C39+D39*D32+B33*B40+C33*C40+D33*D40 -> 127.5450543
A33: Heavy | B33: =(B25/B$18+$F$10*(1/B$18-1/D$18))*3600 -> 279.2113548 | C33: =(C25/C$18+$F$10*(1/C$18-1/D$18))*3600 -> 183.7641824 | D33: =D25/D$18*3600 -> 96.8516129
A35: =Computations!A35 -> Pij Matrix (dim)
C36: Trailing
B37: Small | C37: Large | D37: Heavy | F37: Sum of Pij
A38: Small | B38: =B17/100*B17/100 -> 0.01 | C38: =B17/100*C17/100 -> 0.065 | D38: =B17/100*D17/100 -> 0.025 | F38: =B38+C38+D38 -> 0.1
A39: Large | B39: =B17/100*C17/100 -> 0.065 | C39: =C17/100*C17/100 -> 0.4225 | D39: =C17/100*D17/100 -> 0.1625 | F39: =B39+C39+D39 -> 0.65
A40: Heavy | B40: =B17/100*D17/100 -> 0.025 | C40: =C17/100*D17/100 -> 0.1625 | D40: =D17/100*D17/100 -> 0.0625 | F40: =B40+C40+D40 -> 0.25
F41: =F40+F39+F38 -> 1
A42: =Computations!A42 -> Buffer Matrix (seconds)
C43: Trailing
B44: Small | C44: Large | D44: Heavy | F44: Expected Value
A45: Small | B45: =$F$13*$F$11 -> 26.4 | C45: =$F$13*$F$11 -> 26.4 | D45: =$F$13*$F$11 -> 26.4 | F45: B(Tij)
A46: Large | B46: =MAX(0,$F$13*$F$11-B24*(1/B$18-1/C$18)*3600) -> 0 | C46: =$F$13*$F$11 -> 26.4 | D46: =$F$13*$F$11 -> 26.4 | F46: =B38*B45+C45*C38+D38*D45+B39*B46+C39*C46+D39*D46+B40*B47+C40*C47+D40*D47 -> 22.21498999
A47: Heavy | B47: =MAX(0,$F$13*$F$11-B25*(1/B$18-1/D$18)*3600) -> 0 | C47: =MAX(0,$F$13*$F$11-C25*(1/C$18-1/D$18)*3600) -> 15.2676307 | D47: =$F$13*$F$11 -> 26.4
A50: =Computations!A50 -> Augmented Matrix (Tij + Bij) (seconds)
C51: Trailing
B52: Small | C52: Large | D52: Heavy | F52: Expected Value
A53: Small | B53: =B45+B31 -> 146.496 | C53: =C45+C31 -> 129.9310345 | D53: =D45+D31 -> 123.2516129 | F53: E(Tij) + B(Tij)
A54: Large | B54: =B46+B32 -> 227.9668966 | C54: 129.9310345 | D54: 123.2516129 | F54: =B38*B53+C38*C53+D38*D53+B39*B54+C39*C54+D39*D54+B40*B55+C40*C55+D40*D55 -> 149.7600443
A55: Heavy | B55: 279.2113548 | C55: 199.0318131 | D55: 123.2516129
A57: Arrivals Only Capacity (per hour) | D57: =3600/F54 -> 24.03845443
A60: =Computations!A60 -> Departure-Departure Separation Matrix (seconds)
C61: Trailing
B62: Small | C62: Large | D62: Heavy | F62: Expected Value
A63: Small | B63: 60 | C63: =B63 -> 60 | D63: =C63 -> 60 | F63: E(Td)
A64: Large | B64: 90 | C64: 90 | D64: 90 | F64: =(B63*B38+C38*C63+D63*D38+B39*B64+C64*C39+D39*D64+B65*B40+C40*C65+D65*D40) -> 94.5
A65: Heavy | B65: 120 | C65: 120 | D65: 120
A67: Departures Only Capacity (per hour) | D67: =3600/F64 -> 38.0952381
A69: =Computations!A69 -> Estimation of Critical Departure Gaps (seconds)
E70: E(ROT) | F70: =E16 -> 56.05
A71: Departures | C71: Gap (EDTij) | E71: E(d/Vj) | F71: =($F$9/B$18*B17/100+$F$9/C$18*C17/100+F$9/D$18*D17/100)*3600 -> 49.64876529
A72: 1 | C72: =$F$70+$F$71+$F$72+(A72-1)*$F$64 -> 115.6987653 | E72: sg*qv | F72: =Computations!F72 -> 10
A73: 2 | C73: 210.1987653
A74: 3 | C74: 304.6987653
A75: 4 | C75: 399.1987653
A76: 5 | C76: 493.6987653
A77: 6 | C77: 588.1987653
A78: 7 | C78: 682.6987653
A79: 8 | C79: 777.1987653
A80: 9 | C80: 871.6987653
A81: 10 | C81: 966.1987653
A82: 11 | C82: 1060.698765
A84: Departures per Gap
C85: Trailing
B86: Small | C86: Large | D86: Heavy
A87: Small | B87: =no_of_departures(B53,$C$72,$C$73,$C$74,$C$75) -> 1 | C87: 1 | D87: 1
A88: Large | B88: 2 | C88: 1 | D88: 1
A89: Heavy | B89: 2 | C89: 1 | D89: 1
A91: Departures per hour with 100% Arrival Priority
C93: Trailing
B94: Small | C94: Large | D94: Heavy | F94: Expected Value
A95: Small | B95: =B87*($D$57-1)*B38 -> 0.2303845443 | C95: 1.497499538 | D95: 0.5759613606 | F95: =B95+C95+D95 -> 2.303845443
A96: Large | B96: 2.994999075 | C96: 9.733746995 | D96: 3.743748844 | F96: =B96+C96+D96 -> 16.47249491
A97: Heavy | B97: 1.151922721 | C97: 3.743748844 | D97: 1.439903402 | F97: =B97+C97+D97 -> 6.335574967
F98: =SUM(F95:F97) -> 25.11191532 | G98: Total Departures
G99: with 100% arrival priority
